Cogmind - Beta 14 @@@ ROGUE MODE // 2024.08.18 @ 13:27:32 Player: THN-L0C Result: Destroyed by DZ-62M(R) with Subdweller Laser Performance ------------- Evolutions (0) 0 Regions Visited (2) 400 Robots Destroyed (19) 95 Value Destroyed (537) 537 Prototype IDs (0) 0 Alien Tech Used (0) 0 Bonus (0) 0 TOTAL SCORE: 1032 Bonus ------- None Cogmind --------- Core Integrity 0/250 Matter 98/300 Energy 122/125 System Corruption 0% Temperature Cool (6) Movement Walking (120) Location -10/Subcaves Parts ------- > --- POWER (1) -------- Light Ion Engine > --- PROPULSION (2) --- Improved Aluminum Leg Improved Aluminum Leg > --- UTILITY (2) ------ Medium Storage Unit Targeting Computer > --- WEAPON (2) ------- Subdweller Beam Cannon Subdweller Machine Gun > --- INVENTORY (10) --- Subdweller Power Source Improved Aluminum Leg Large Matter Pod (86) Shotgun Shotgun Shotgun Shotgun Shotgun Peak State ------------ > --- POWER ------------ Light Ion Engine > --- PROPULSION ------- Improved Aluminum Leg Improved Aluminum Leg > --- UTILITY ---------- Medium Storage Unit Improved Terrain Scanner > --- WEAPON ----------- Shotgun Shotgun > --- INVENTORY -------- Improved Aluminum Leg Improved Aluminum Leg Large Matter Pod Seismic Detector Seismic Detector Shotgun Shotgun Shotgun Shotgun Mining Laser [Rating: 14] Favorites ----------- Power Light Ion Engine Engine Light Ion Engine Propulsion Improved Aluminum Leg Treads Light Treads Leg Improved Aluminum Leg Utility Medium Storage Unit Device Seismic Detector Storage Medium Storage Unit Processor Targeting Computer Weapon Shotgun Energy Cannon Subdweller Beam Cannon Ballistic Gun Shotgun Launcher Grenade Launcher Special Weapon Mining Laser Build | -11 -10 -10 ------- Run | Yrd Mat Sub Slots Evolved . | . . . Power . | . . . Propulsion . | . . . Utility . | . . . Weapon . | . . . Parts Attached 34 | 7 20 7 Power 2 | 1 1 . Engine 2 | 1 1 . Core . | . . . Reactor . | . . . Propulsion 5 | 2 3 . Treads 2 | 2 . . Leg 3 | . 3 . Wheel . | . . . Hover . | . . . Flight . | . . . Utility 6 | 2 3 1 Device 3 | 1 2 . Storage 2 | 1 1 . Processor 1 | . . 1 Hackware . | . . . Protection . | . . . Artifact . | . . . Weapon 21 | 2 13 6 Energy Gun . | . . . Energy Cannon 1 | . . 1 Ballistic Gun 11 | 2 7 2 Ballistic Cannon . | . . . Launcher 2 | . . 2 Special Weapon 7 | . 6 1 Impact Weapon . | . . . Slashing Weapon . | . . . Piercing Weapon . | . . . Special Melee Weapon . | . . . Unidentified Prototypes . | . . . Parts Lost 6 | . 3 3 Power 1 | . 1 . Propulsion 1 | . 1 . Utility 2 | . 1 1 Weapon 2 | . . 2 Highest Loss Streak 3 | . 3 2 To Critical Strikes . | . . . Average Slot Usage (%) 99 | . 99 99 Engine 13 | . 13 14 Treads 8 | . 13 . Leg 19 | . 14 28 Device 9 | . 13 . Storage 14 | . 14 14 Processor 4 | . . 13 Ballistic Gun 18 | . 21 13 Launcher 4 | . . 12 Special Weapon 4 | . 6 1 Peak Build Rating 14 | 7 14 12 Average Rating 9 | 5 9 10 On Entrance 6 | . 7 11 Naked Turns . | . . . Heaviest Build 20 | 12 20 20 Greatest Support 40 | 40 40 26 Greatest Overweight (x) 1 | . 1 . Average Overweight (x) . | . . . Largest Inventory Capacity 10 | 8 10 10 Average Capacity 9 | 7 9 10 Most Carried 10 | 2 10 10 Average Carried 6 | . 6 9 Final Capacity 10 | 8 10 10 Final Carried 10 | 2 10 8 Class Distribution -------------------- 100% | Mutant Dominant Class ---------------- Mutant | -10/Materials Mutant | -10/Subcaves Resources | -11 -10 -10 ----------- Run | Yrd Mat Sub Matter Collected 854 | 302 292 260 Remotely . | . . . Salvage Created 589 | 104 317 168 Parts 43 | 7 19 17 Haulers Intercepted . | . . . Recyclers Shooed 2 | . 2 . Parts Field Recycled . | . . . Retrieved Matter . | . . . Parts Self-Destructed 11 | . . 11 Prevented . | . . . Kills | -11 -10 -10 ------- Run | Yrd Mat Sub Combat Hostiles Destroyed 17 | . 10 7 Guns 12 | . 10 2 AOE 5 | . . 5 Classes Destroyed 5 | 2 2 1 Tunneler 1 | 1 . . Recycler 1 | 1 . . Swarmer 5 | . 3 2 Grunt 7 | . 7 . Subdweller 5 | . . 5 Best Kill Streak 5 | 1 5 2 Combat Bots Only 5 | . 5 2 Max Kills in Single Turn 2 | 1 2 1 Gunslinging 1 | . 1 . Exploded 1 | . . 1 Melee . | . . . Uniques/NPCs Destroyed . | . . . Combat | -11 -10 -10 -------- Run | Yrd Mat Sub Hostile Shots Fired 89 | . 54 35 Missed 24 | . 12 12 Damage Taken 1009 | . 538 471 Core 255 | . 76 179 Absorbed by Shields . | . . . Regen/Repaired (Parts) 27 | . 27 . Core Remaining (%) 100 | 100 . . Volleys Fired 90 | 8 46 36 Largest 2 | 2 2 2 Hottest 123 | 40 123 110 Shots Fired 126 | 16 63 47 Gun 78 | 16 46 16 Cannon 3 | . . 3 Launcher 23 | . . 23 Special 22 | . 17 5 Kinetic 78 | 16 46 16 Thermal 25 | . 17 8 Explosive 23 | . . 23 Electromagnetic . | . . . Robot Hit Streak 27 | 5 27 9 Robot Miss Streak 6 | 1 3 6 Penetration Max . | . . . Secondary Targets 1 | . 1 . Max Gunslinging Chain 1 | . 1 . Shots Hit Robots 73 | 12 37 24 Core Hits 39 | 3 20 16 Critical Kills . | . . . Critical Parts Destroyed . | . . . Critical Strikes . | . . . Melee Attacks . | . . . Impact . | . . . Slashing . | . . . Piercing . | . . . Sneak Attacks . | . . . Combat Hostiles . | . . . Follow-up Attacks . | . . . Damage Inflicted 1734 | 136 590 1008 Guns 761 | 136 481 144 Cannons 81 | . . 81 Explosions 892 | . 109 783 Melee . | . . . Ramming . | . . . Kinetic 761 | 136 481 144 Thermal 190 | . 109 81 Explosive 783 | . . 783 Electromagnetic . | . . . Impact . | . . . Slashing . | . . . Piercing . | . . . Highest Corruption . | . . . Average Corruption . | . . . Corruption Purged . | . . . Corruption Blocked . | . . . Overload Shots . | . . . Overflow Damage 45 | . 45 . Projectiles . | . . . Explosions 45 | . 45 . Melee . | . . . Knockbacks . | . . . Impact . | . . . Kinetic . | . . . Secondary . | . . . Self-Inflicted Damage 154 | . 101 53 Shots 4 | . 1 3 Rammed . | . . . Targets Rammed . | . . . Kicked . | . . . Crushed . | . . . Highest Temperature 274 | . 82 274 Average Temperature 35 | . 23 134 Received Heat Transfer 572 | . 198 374 Siege Activations . | . . . Robots Corrupted . | . . . Combat Hostiles . | . . . Parts Fried . | . . . Impact Corruptions . | . . . Robots Melted . | . . . Combat Hostiles . | . . . Parts Melted . | . . . Heat Transferred 261 | . 150 111 Parts Sabotaged . | . . . Parts Stolen . | . . . Parts Stripped . | . . . Power Chain Reactions . | . . . Alert | -11 -10 -10 ------- Run | Yrd Mat Sub Peak Influence 156 | 10 156 . Initial 6 | . 6 . Average 56 | 4 62 . Maximum Alert Level . | . . . Low Security (%) 100 | 100 100 . Level 1 . | . . . Level 2 . | . . . Level 3 . | . . . Level 4 . | . . . Level 5 . | . . . High Security . | . . . Max Security . | . . . Squads Dispatched 1 | . 1 . Investigation . | . . . Extermination . | . . . Reinforcement 1 | . 1 . Assault . | . . . Garrison . | . . . Intercept . | . . . Searches Triggered . | . . . Construction Impeded . | . . . Haulers Reinforced . | . . . Active Scanning Responses . | . . . Cargo Convoy Interrupts . | . . . Stealth | -11 -10 -10 --------- Run | Yrd Mat Sub Distress Signals . | . . . Communications Jammed . | . . . Distress Signals . | . . . Times Spotted 29 | . 19 10 Peak Tracking Total 7 | . 7 3 Tactical Retreats 1 | . . 1 Traps | -11 -10 -10 ------- Run | Yrd Mat Sub Traps Triggered . | . . . Indirectly . | . . . Trap Hack Attempts . | . . . Triggered . | . . . Disarmed . | . . . Reprogrammed . | . . . Reused . | . . . Traps Extracted . | . . . Installed . | . . . Triggered . | . . . Machines | -11 -10 -10 ---------- Run | Yrd Mat Sub Machines Disabled 1 | . 1 . Max in Single Turn 1 | . 1 . Machines Repaired . | . . . Machines Dismantled . | . . . Machines Sabotaged . | . . . Overloaded Fab Kills . | . . . Hacking | -11 -10 -10 --------- Run | Yrd Mat Sub Machines Accessed 6 | . 6 . Terminals 5 | . 5 . Fabricators . | . . . Repair Stations 1 | . 1 . Recycling Units . | . . . Scanalyzers . | . . . Garrison Access . | . . . Total Hacks 20 | . 20 . Successful 11 | . 11 . Failed 8 | . 8 . Catastrophic . | . . . Database Lockouts 1 | . 1 . Manual 17 | . 17 . Terminals 18 | . 18 . Fabricators . | . . . Repair Stations 2 | . 2 . Recycling Units . | . . . Scanalyzers . | . . . Garrison Access . | . . . Terminal Hacks 4 | . 4 . Robot Analysis 1 | . 1 . Terminal Index 2 | . 2 . Zone Layout 1 | . 1 . Fabricator Hacks . | . . . Repair Station Hacks 2 | . 2 . Scan Component 1 | . 1 . Repair 1 | . 1 . Recycling Unit Hacks . | . . . Scanalyzer . | . . . Garrison Access Hacks . | . . . Unauthorized Hacks 5 | . 5 . Terminals 5 | . 5 . Assimilate 1 | . 1 . Botnet 4 | . 4 . Fabricators . | . . . Repair Stations . | . . . Recycling Units . | . . . Scanalyzers . | . . . Garrison Access . | . . . Data Cores Recovered . | . . . Used . | . . . Hacking Detections 5 | . 5 . Full Trace Events 1 | . 1 . Feedback Events . | . . . Feedback Blocked . | . . . Robot Schematics Acquired . | . . . Robots Built . | . . . Authchips . | . . . Time . | . . . Total Robot Build Rating . | . . . Part Schematics Acquired . | . . . Parts Built . | . . . Authchips . | . . . Time . | . . . Total Part Build Rating . | . . . Parts Repaired 1 | . 1 . Time 26 | . 26 . Parts Recycled . | . . . Recycled Matter . | . . . Retrieved Matter . | . . . Retrieved Components . | . . . Parts Scanalyzed . | . . . Part Schematics Acquired . | . . . Parts Damaged . | . . . Bothacking | -11 -10 -10 ------------ Run | Yrd Mat Sub Used RIF Installer . | . . . Robots Hacked . | . . . Non-combat . | . . . Combat . | . . . Robot Hacks Applied . | . . . Relay Couplers Released . | . . . Fabnet Peak Effective % . | . . . Robots Rewired . | . . . Allies Hacked . | . . . Hacks Repelled . | . . . Allies | -11 -10 -10 -------- Run | Yrd Mat Sub Total Allies . | . . . Largest Group . | . . . Highest-Rated Group . | . . . Highest-Rated Ally . | . . . Total Orders . | . . . Ally Attacks . | . . . Total Damage . | . . . Kills . | . . . Allies Corrupted . | . . . Allies Melted . | . . . Intel | -11 -10 -10 ------- Run | Yrd Mat Sub Robot Analysis Total 1 | . 1 . Derelict Logs Recovered 1 | . . 1 Drone Launches . | . . . Drone Recoveries . | . . . Exploration | -11 -10 -10 ------------- Run | Yrd Mat Sub Turns Passed 1928 | 141 1140 647 Spaces Moved 990 | 71 617 302 Core 6 | 6 . . Treads 310 | 65 245 . Legs 674 | . 372 302 Wheels . | . . . Hover . | . . . Flight . | . . . Fastest Speed 50 | 50 120 120 Average Speed 132 | 150 136 120 Slowest Speed 190 | 160 190 120 Overloaded Moves . | . . . Propulsion Burnouts . | . . . Robots Hopped . | . . . Cave-ins Triggered . | . . . Exploration Rate (%) 34 | 4 75 24 Regions Visited 2 Branch Regions 1 Pre-discovered Areas . | . . . Known Exits Taken . | . . . Unknown Exits Taken 2 | 1 1 . Scrap Searched . | . . . Spaces Dug 21 | . 17 4 Terrain Destroyed 126 | . 47 79 Melee . | . . . Projectile 17 | . 17 . AOE 109 | . 30 79 Terrain Rammed . | . . . Walls Destroyed . | . . . Machines Disabled . | . . . Actions | -11 -10 -10 --------- Run | Yrd Mat Sub Total 1430 | 87 813 530 Wait 291 | . 111 180 Move 988 | 70 616 302 Hop . | . . . Pick Up 19 | 2 14 3 Fast Attach 8 | 7 1 . Attach 5 | . 2 3 Detach . | . . . Swap 21 | . 17 4 Drop 8 | . 6 2 Fire 90 | 8 46 36 Melee . | . . . Ram . | . . . Kick . | . . . Crush . | . . . Escape Stasis . | . . . Rewire . | . . . Trap . | . . . Miscellaneous . | . . . Route ------- -11/Scrapyard -10/Materials (discovered 5 exits: [*Mat x2] / [*Min x2] / [*Sub]) -10/Subcaves (discovered 2 exits: [*Mat x2]) History --------- Turn | Location | Event 8 | -11/Scrapyard | Discovered new exit (range 16) 142 | -11/Scrapyard | Entered Materials 215 | -10/Materials | Discovered new exit (range 15) 260 | -10/Materials | Central database locked down 273 | -10/Materials | Discovered new exit (range 16) 304 | -10/Materials | Build established: Mutant 609 | -10/Materials | Discovered new exit (range 15) 765 | -10/Materials | Repaired Mining Laser 1087 | -10/Materials | Lost 3 parts (1p1n1u) 1109 | -10/Materials | Discovered new exit (range 16) 1272 | -10/Materials | Discovered new exit (range 9) 1282 | -10/Materials | Entered Subcaves 1315 | -10/Subcaves | Learned Materials stockpile data 1331 | -10/Subcaves | Discovered new exit (range 10) 1345 | -10/Subcaves | Shifting Twisted Machinery released Sub. Beam Cannon 1438 | -10/Subcaves | A swath of the cavern ceiling suddenly collapsed 1692 | -10/Subcaves | Discovered new exit (range 15) 1817 | -10/Subcaves | Core integrity fell below 50% 1896 | -10/Subcaves | Core integrity fell below 20% 1929 | -10/Subcaves | Destroyed by DZ-62M(R) with Subdweller Laser Last Messages --------------- 01737_ Acquired 5 matter. 01742_ Acquired 9 matter. 01757_ S-10 Pest destroyed. 01770_ Flight Unit fries itself beyond repair. 01772_ Acquired 30 matter. 01773_ Lgt. Ion Engine fries itself beyond repair. 01774_ Flight Unit fries itself beyond repair. 01776_ Subatomizers dissect the Flight Unit. 01784_ Flight Unit fries itself beyond repair. 01806_ L5-JW9(R): "ECOKILL!" 01816_ L5-JW9(R) destroyed. 01818_ The unstable cave ceiling collapses. 01823_ Acquired 13 matter. 01825_ Dropped Shotgun. 01825_ Acquired Sub. Machine Gun. 01829_ The unstable cave ceiling collapses. 01870_ Acquired 8 matter. 01890_ Critical hit (Meltdown: +290). 01895_ Grenade Launcher destroyed. 01911_ Mining Laser destroyed. Map ----- +----------------------------------------------------+ | ??????????????????????????????????????? ???? | | ??????????????????????????????????????? % ????? | | ?????????????????????????????????????## #?????? | | ?????????????????????????????????????# ??????? | | ????????????????????????????????????##" #???????? | | ???????????????????????????????????##" #????????? | | ??????????????????????????????????#" #######???? | | ###??????????????????????????????## # # # ##??? | | ###??????????????????????????## "" " ^ #??? | | # ??????????????????????????#""""" #??? | | ??????????????????????????# " #### # ###? | | ??????????????????????????##"#???### ^## | | % ???????????????????????????##?????## % | | ##????????????????????????????????# ^ | | ##????####?##?#????? ????????????# | | ######""##"#"#"??? "???????????## # | | " """ "" "?? "#?????????#### | | """" """""???? #?????##### # ### | | ### " " ## ""###????? ##????#" ## | | ????#"##" ### #####??????#""#?#### # ### | | ????##?## #?## "#??????#""#?# # # | | ????????#"""#?# ##??????#" ### ## & | | ???????? #?## ##?????## [ | | ????????## ??### ""###?### # # | | ?????????# ???#" ## ### | | ??????????## ???#" R @ # | | ????????????##???###### ## ## < | | ??????????????????????######### ## | | ??????????????????????????????# # # # ## #### | | ??????????????????????????????########### ###??# | | ????????????????????????????????????????#####????? | | ?????????????????????????????????????????????????? | | ?????????????????????????????????????????????????? | | ?????????????????????????????????????????????????? | | ?????????????????????????????????????????????????? | | ?????????????????????????????????????????????????? | | ?????????????????????????????????????????????????? | | ?????????????????????????????????????????????????? | | ?????????????????????????????????????????????????? | | ?????????????????????????????????????????????????? | | ?????????????????????????????????????????????????? | | ?????????????????????????????????????????????????? | | ?????????????????????????????????????????????????? | | ?????????????????????????????????????????????????? | | ?????????????????????????????????????????????????? | | | | | | | | | | | +----------------------------------------------------+ Best States ------------- Heat Dissipation 25 Energy Generation 10 Energy Capacity 125 Matter Stores 300 Matter Capacity 300 Sight Range 16 Terrain Scan Range 16 Terrain Scan Density 10 Evasion (%) 55 Targeting Accuracy 5 Recoil Reduction 2 Item Schematics ----------------- None Robot Schematics ------------------ None Fabricated ------------ Nothing Alien Tech Used ----------------- None Achievements -------------- None Challenges ------------ None Game ------ Seed ConstructSwordWand Manual? 0 Play Time 00:17:56 Cumulative 65.2 hours Start 2024.08.18 @ 13:09:49 End 2024.08.18 @ 13:27:32 Sessions 1 Manual Loads 0 Difficulty Rogue Special Mode None Game No. 63 Rogue 63 Adventurer 0 Explorer 0 Win Type - Total 0 Types 0/0/0/0/0/0/0/0/0 Lore% 44 Gallery% 48 Achievement% 37 Wizard Run 0 Options --------- Layout 2 ASCII 0 Keyboard 1 Movement Vi Keybinds 0 Fullscreen 1 Font 32/SmallcapsGlow Map View 77x44 Zoom Use 0% Tactical HUD 1 Map Filters NONE Filters NONE Steam 1 RUN: eae8b782-3848-4a16-9105-c1570f20f370